[Event "*** MasterClass Titled Tuesday Blitz"]
[Site "Chess.com"]
[Date "2017.12.12"]
[Round "4"]
[White "sandromareco"]
[Black "Penguininja"]
[Result "1/2-1/2"]
[WhiteElo "2630"]
[BlackElo "2399"]
[TimeControl "180+2"]
[EndTime "13:55:34 PST"]
[Termination "Game drawn - insufficient material"]

1. d4 {[%clk 0:02:10.4]} 1... d5 {[%clk 0:02:59]} 2. Nf3 {[%clk 0:02:12.3]} 2...
Nf6 {[%clk 0:02:59.3]} 3. c4 {[%clk 0:02:13.4]} 3... c6 {[%clk 0:03:00.8]} 4.
Nc3 {[%clk 0:02:14]} 4... e6 {[%clk 0:03:02.4]} 5. Bg5 {[%clk 0:02:10.6]} 5...
dxc4 {[%clk 0:03:03.8]} 6. a4 {[%clk 0:02:09.3]} 6... Bb4 {[%clk 0:03:00.5]} 7.
e3 {[%clk 0:02:08.4]} 7... b5 {[%clk 0:02:59.4]} 8. Qc2 {[%clk 0:02:05.9]} 8...
Bb7 {[%clk 0:02:53.6]} 9. Be2 {[%clk 0:02:06.5]} 9... a6 {[%clk 0:02:54]} 10.
O-O {[%clk 0:02:07.4]} 10... Nbd7 {[%clk 0:02:50.2]} 11. Rfd1 {[%clk 0:02:08.2]}
11... h6 {[%clk 0:02:49]} 12. Bh4 {[%clk 0:02:07.7]} 12... O-O {[%clk
0:02:49.6]} 13. Ne5 {[%clk 0:02:07.9]} 13... Qc7 {[%clk 0:02:44.5]} 14. Bg3
{[%clk 0:02:02.9]} 14... Bd6 {[%clk 0:02:41.3]} 15. f4 {[%clk 0:02:00.4]} 15...
Qb6 {[%clk 0:02:30.9]} 16. b3 {[%clk 0:01:58.5]} 16... cxb3 {[%clk 0:02:26.4]}
17. Qxb3 {[%clk 0:01:59.4]} 17... Rfd8 {[%clk 0:02:09.3]} 18. Rab1 {[%clk
0:01:57.3]} 18... Rac8 {[%clk 0:01:54.5]} 19. Bf2 {[%clk 0:01:58.1]} 19... Qa5
{[%clk 0:01:47.2]} 20. Be1 {[%clk 0:01:58.9]} 20... Qb6 {[%clk 0:01:47.2]} 21.
Bh4 {[%clk 0:01:55.5]} 21... Be7 {[%clk 0:01:42.9]} 22. Bf3 {[%clk 0:01:50.2]}
22... c5 {[%clk 0:01:38.9]} 23. axb5 {[%clk 0:01:47.5]} 23... cxd4 {[%clk
0:01:36.8]} 24. Na4 {[%clk 0:01:45.5]} 24... Qa7 {[%clk 0:01:28]} 25. Bxb7
{[%clk 0:01:43.9]} 25... Qxb7 {[%clk 0:01:29.9]} 26. Nc6 {[%clk 0:01:45.1]}
26... Re8 {[%clk 0:01:26.4]} 27. Nxe7+ {[%clk 0:01:45.1]} 27... Rxe7 {[%clk
0:01:28.3]} 28. Rxd4 {[%clk 0:01:45.5]} 28... axb5 {[%clk 0:01:27.2]} 29. Qd3
{[%clk 0:01:41.4]} 29... Qc6 {[%clk 0:01:14.4]} 30. Qxb5 {[%clk 0:01:39.4]}
30... e5 {[%clk 0:00:54]} 31. Qxc6 {[%clk 0:01:33.2]} 31... Rxc6 {[%clk
0:00:55.9]} 32. Rdb4 {[%clk 0:01:26.2]} 32... exf4 {[%clk 0:00:52.7]} 33. exf4
{[%clk 0:01:27.5]} 33... Re2 {[%clk 0:00:49.7]} 34. R4b2 {[%clk 0:01:20.3]}
34... Re4 {[%clk 0:00:47]} 35. Rb4 {[%clk 0:01:17]} 35... Re2 {[%clk 0:00:45.9]}
36. Bxf6 {[%clk 0:01:15.6]} 36... Nxf6 {[%clk 0:00:46.5]} 37. R4b2 {[%clk
0:01:06]} 37... Re4 {[%clk 0:00:38.7]} 38. Rb4 {[%clk 0:01:06.6]} 38... Re2
{[%clk 0:00:39.9]} 39. R4b2 {[%clk 0:00:58.6]} 39... Rxb2 {[%clk 0:00:39.3]} 40.
Rxb2 {[%clk 0:00:58.3]} 40... Rc4 {[%clk 0:00:40.5]} 41. Rb8+ {[%clk 0:00:58]}
41... Kh7 {[%clk 0:00:41.3]} 42. Nb2 {[%clk 0:00:58.7]} 42... Rxf4 {[%clk
0:00:41.9]} 43. Nd3 {[%clk 0:01:00]} 43... Re4 {[%clk 0:00:41.9]} 44. Rb7 {[%clk
0:01:00.8]} 44... Kg8 {[%clk 0:00:39.8]} 45. Rb8+ {[%clk 0:01:01.5]} 45... Re8
{[%clk 0:00:39.7]} 46. Rb7 {[%clk 0:01:02.8]} 46... Ne4 {[%clk 0:00:39.6]} 47.
g3 {[%clk 0:01:02.6]} 47... g6 {[%clk 0:00:37]} 48. Kg2 {[%clk 0:01:02]} 48...
Kg7 {[%clk 0:00:38.4]} 49. Nf4 {[%clk 0:01:01.8]} 49... Nd6 {[%clk 0:00:31.5]}
50. Rd7 {[%clk 0:01:01.8]} 50... Nf5 {[%clk 0:00:32.8]} 51. Kf2 {[%clk
0:00:57.6]} 51... h5 {[%clk 0:00:32.8]} 52. h3 {[%clk 0:00:57.4]} 52... Rc8
{[%clk 0:00:30.3]} 53. Rd2 {[%clk 0:00:55.8]} 53... Rc3 {[%clk 0:00:28.9]} 54.
g4 {[%clk 0:00:56.8]} 54... hxg4 {[%clk 0:00:28.3]} 55. hxg4 {[%clk 0:00:58.7]}
55... Nh6 {[%clk 0:00:29.2]} 56. g5 {[%clk 0:00:56.7]} 56... Ng4+ {[%clk
0:00:30.4]} 57. Kg2 {[%clk 0:00:56.2]} 57... Ne3+ {[%clk 0:00:29.5]} 58. Kf2
{[%clk 0:00:57.3]} 58... Ng4+ {[%clk 0:00:30.3]} 59. Kg2 {[%clk 0:00:58.2]}
59... Ne3+ {[%clk 0:00:31.8]} 60. Kf2 {[%clk 0:00:59.5]} 60... Nf5 {[%clk
0:00:33.5]} 61. Rd7 {[%clk 0:00:58.2]} 61... Rc6 {[%clk 0:00:31.8]} 62. Rb7
{[%clk 0:00:53.1]} 62... Nd4 {[%clk 0:00:28.8]} 63. Rd7 {[%clk 0:00:48.4]} 63...
Ne6 {[%clk 0:00:27.1]} 64. Nxe6+ {[%clk 0:00:46.9]} 64... Rxe6 {[%clk 0:00:29]}
65. Rd5 {[%clk 0:00:48.4]} 65... Re4 {[%clk 0:00:30]} 66. Kf3 {[%clk 0:00:49.2]}
66... Ra4 {[%clk 0:00:31.5]} 67. Kg3 {[%clk 0:00:48.5]} 67... Rc4 {[%clk
0:00:31.9]} 68. Kf3 {[%clk 0:00:49.7]} 68... Kf8 {[%clk 0:00:33.5]} 69. Re5
{[%clk 0:00:48.1]} 69... Ra4 {[%clk 0:00:33]} 70. Kg3 {[%clk 0:00:49.1]} 70...
Kg7 {[%clk 0:00:34.3]} 71. Kf3 {[%clk 0:00:49.9]} 71... Ra1 {[%clk 0:00:35.5]}
72. Kg4 {[%clk 0:00:49.9]} 72... Rf1 {[%clk 0:00:36.7]} 73. Ra5 {[%clk
0:00:49.4]} 73... Kf8 {[%clk 0:00:38]} 74. Re5 {[%clk 0:00:49.6]} 74... Rf2
{[%clk 0:00:35.4]} 75. Kg3 {[%clk 0:00:50.4]} 75... Ra2 {[%clk 0:00:34.6]} 76.
Kg4 {[%clk 0:00:51.1]} 76... Kg7 {[%clk 0:00:36.3]} 77. Kg3 {[%clk 0:00:51.8]}
77... Ra4 {[%clk 0:00:37.5]} 78. Kf3 {[%clk 0:00:52.4]} 78... Kf8 {[%clk
0:00:37.9]} 79. Kg3 {[%clk 0:00:53.5]} 79... Kg7 {[%clk 0:00:38.8]} 80. Kf3
{[%clk 0:00:54.7]} 80... Ra7 {[%clk 0:00:40.1]} 81. Kg3 {[%clk 0:00:53.5]} 81...
f6 {[%clk 0:00:41.5]} 82. gxf6+ {[%clk 0:00:53.7]} 82... Kxf6 {[%clk 0:00:43.4]}
83. Re3 {[%clk 0:00:54.9]} 83... Kf5 {[%clk 0:00:44.7]} 84. Rf3+ {[%clk
0:00:55.5]} 84... Kg5 {[%clk 0:00:46.2]} 85. Rb3 {[%clk 0:00:56.7]} 85... Ra5
{[%clk 0:00:46.6]} 86. Rc3 {[%clk 0:00:58]} 86... Kh5 {[%clk 0:00:47.7]} 87. Rd3
{[%clk 0:00:58.8]} 87... g5 {[%clk 0:00:49.1]} 88. Rc3 {[%clk 0:01:00.2]} 88...
Re5 {[%clk 0:00:49]} 89. Rd3 {[%clk 0:01:00.4]} 89... Re4 {[%clk 0:00:48.6]} 90.
Rb3 {[%clk 0:01:02.3]} 90... Rg4+ {[%clk 0:00:49.9]} 91. Kh3 {[%clk 0:01:03.1]}
91... Rh4+ {[%clk 0:00:50.9]} 92. Kg3 {[%clk 0:01:04.6]} 92... Rg4+ {[%clk
0:00:51.3]} 93. Kh3 {[%clk 0:01:05.7]} 93... Rd4 {[%clk 0:00:53]} 94. Kg3 {[%clk
0:01:05.9]} 94... Kg6 {[%clk 0:00:52.7]} 95. Ra3 {[%clk 0:01:05.3]} 95... Kf5
{[%clk 0:00:53.6]} 96. Ra5+ {[%clk 0:01:06.3]} 96... Kf6 {[%clk 0:00:55.1]} 97.
Ra6+ {[%clk 0:01:07.3]} 97... Ke5 {[%clk 0:00:56.7]} 98. Ra5+ {[%clk 0:01:08.4]}
98... Kf6 {[%clk 0:00:56.2]} 99. Ra6+ {[%clk 0:01:09.5]} 99... Ke5 {[%clk
0:00:57.9]} 100. Ra5+ {[%clk 0:01:10.8]} 100... Kf6 {[%clk 0:00:59.1]} 101. Ra6+
{[%clk 0:01:11.9]} 101... Kg7 {[%clk 0:01:00.7]} 102. Ra7+ {[%clk 0:01:13.1]}
102... Kg6 {[%clk 0:01:02.1]} 103. Ra6+ {[%clk 0:01:14.4]} 103... Kh5 {[%clk
0:01:03.6]} 104. Ra3 {[%clk 0:01:15.5]} 104... Rh4 {[%clk 0:01:02.6]} 105. Rb3
{[%clk 0:01:15.6]} 105... Rh1 {[%clk 0:01:03.3]} 106. Ra3 {[%clk 0:01:16]}
106... Rg1+ {[%clk 0:01:04.7]} 107. Kh3 {[%clk 0:01:16.8]} 107... g4+ {[%clk
0:01:03.7]} 108. Kh2 {[%clk 0:01:18]} 108... Rb1 {[%clk 0:01:04]} 109. Kg3
{[%clk 0:01:19.3]} 109... Rg1+ {[%clk 0:01:04.1]} 110. Kh2 {[%clk 0:01:20.3]}
110... Rf1 {[%clk 0:00:59.6]} 111. Kg3 {[%clk 0:01:20.2]} 111... Rf3+ {[%clk
0:01:00.5]} 112. Rxf3 {[%clk 0:01:20.2]} 112... gxf3 {[%clk 0:01:02.4]} 113.
Kxf3 {[%clk 0:01:22.1]} 1/2-1/2

[Event "*** MasterClass Titled Tuesday Blitz"]
[Site "Chess.com"]
[Date "2017.12.12"]
[Round "4"]
[White "GMMarcinDziuba"]
[Black "djano"]
[Result "1/2-1/2"]
[WhiteElo "2524"]
[BlackElo "2388"]
[TimeControl "180+2"]
[EndTime "13:56:53 PST"]
[Termination "Game drawn by agreement"]

1. d4 {[%clk 0:03:01]} 1... Nf6 {[%clk 0:02:58.3]} 2. Nf3 {[%clk 0:02:59.8]}
2... g6 {[%clk 0:02:58.8]} 3. c3 {[%clk 0:03:01]} 3... Bg7 {[%clk 0:02:58.8]} 4.
h3 {[%clk 0:03:02.4]} 4... O-O {[%clk 0:02:59.5]} 5. Bf4 {[%clk 0:03:04]} 5...
d6 {[%clk 0:02:57.6]} 6. e3 {[%clk 0:03:05.3]} 6... b6 {[%clk 0:02:55.6]} 7. Be2
{[%clk 0:03:05.9]} 7... Bb7 {[%clk 0:02:56.7]} 8. O-O {[%clk 0:03:06.5]} 8...
Nbd7 {[%clk 0:02:57.6]} 9. Nbd2 {[%clk 0:03:07.4]} 9... e6 {[%clk 0:02:54.5]}
10. a4 {[%clk 0:03:08.5]} 10... a5 {[%clk 0:02:53.8]} 11. b4 {[%clk 0:03:06.2]}
11... Nd5 {[%clk 0:02:50.8]} 12. Qb3 {[%clk 0:03:01]} 12... axb4 {[%clk
0:02:47.8]} 13. cxb4 {[%clk 0:03:01.8]} 13... Nxf4 {[%clk 0:02:48.9]} 14. exf4
{[%clk 0:03:02.4]} 14... Nf6 {[%clk 0:02:48]} 15. Rfc1 {[%clk 0:02:53.6]} 15...
Ne4 {[%clk 0:02:43.5]} 16. Nxe4 {[%clk 0:02:41.7]} 16... Bxe4 {[%clk 0:02:45.4]}
17. Qe3 {[%clk 0:02:42.5]} 17... Bd5 {[%clk 0:02:42.7]} 18. Ra3 {[%clk 0:02:39]}
18... Ra7 {[%clk 0:02:37.7]} 19. a5 {[%clk 0:02:39.9]} 19... Qa8 {[%clk
0:02:38]} 20. a6 {[%clk 0:02:40.3]} 20... c6 {[%clk 0:02:31.3]} 21. b5 {[%clk
0:02:18.8]} 21... Rc8 {[%clk 0:02:31.7]} 22. Rac3 {[%clk 0:02:13.2]} 22... Rac7
{[%clk 0:02:28.4]} 23. bxc6 {[%clk 0:02:11.5]} 23... Rxc6 {[%clk 0:02:28.8]} 24.
Rxc6 {[%clk 0:02:09.6]} 24... Rxc6 {[%clk 0:02:29.1]} 25. Rxc6 {[%clk
0:02:07.5]} 25... Bxc6 {[%clk 0:02:31]} 26. Ne1 {[%clk 0:02:03.3]} 26... b5
{[%clk 0:02:29.7]} 27. Qa3 {[%clk 0:02:00.3]} 27... Bxd4 {[%clk 0:01:53.5]} 28.
Qxd6 {[%clk 0:01:59.3]} 28... Bc3 {[%clk 0:01:54.2]} 29. Bf3 {[%clk 0:01:21.6]}
29... Qxa6 {[%clk 0:01:41.4]} 30. Nc2 {[%clk 0:01:04.6]} 30... Qa2 {[%clk
0:01:32.1]} 31. Qxc6 {[%clk 0:00:30.5]} 31... Qxc2 {[%clk 0:01:32.3]} 32. Qxb5
{[%clk 0:00:31.5]} 32... Qc1+ {[%clk 0:01:30.8]} 33. Qf1 {[%clk 0:00:25.6]}
33... Qxf4 {[%clk 0:01:31.3]} 34. Qd3 {[%clk 0:00:26.3]} 34... Be5 {[%clk
0:01:28.3]} 35. g3 {[%clk 0:00:26.1]} 35... Qc1+ {[%clk 0:01:27.5]} 36. Kg2
{[%clk 0:00:27.5]} 36... Qb2 {[%clk 0:01:27.1]} 37. h4 {[%clk 0:00:28.7]} 37...
h5 {[%clk 0:01:27.4]} 38. Qe2 {[%clk 0:00:29.8]} 38... Qa1 {[%clk 0:01:26.5]}
39. Qd1 {[%clk 0:00:30.7]} 39... Qc3 {[%clk 0:01:25.9]} 40. Qd8+ {[%clk
0:00:29.9]} 40... Kg7 {[%clk 0:01:26.7]} 41. Qd1 {[%clk 0:00:31.4]} 41... Bd4
{[%clk 0:01:27.2]} 42. Qe2 {[%clk 0:00:33.3]} 42... Qc5 {[%clk 0:01:26.7]} 43.
Qd2 {[%clk 0:00:34]} 43... e5 {[%clk 0:01:27.4]} 44. Qa2 {[%clk 0:00:33.9]}
44... Qc3 {[%clk 0:01:26.3]} 45. Bd5 {[%clk 0:00:34.7]} 45... Qc7 {[%clk
0:01:25]} 46. Qc4 {[%clk 0:00:35.7]} 46... Qd7 {[%clk 0:01:24.4]} 47. Qc6 {[%clk
0:00:36.7]} 47... Qf5 {[%clk 0:01:24.1]} 48. Bf3 {[%clk 0:00:36.7]} 48... Qd3
{[%clk 0:01:20.3]} 49. Qe4 {[%clk 0:00:37.5]} 49... Qd2 {[%clk 0:01:20.3]} 50.
Qe2 {[%clk 0:00:38.6]} 50... Qc3 {[%clk 0:01:19.9]} 51. Qa2 {[%clk 0:00:39.2]}
51... Qc5 {[%clk 0:01:19.1]} 52. Bd5 {[%clk 0:00:32]} 52... Qe7 {[%clk
0:01:11.2]} 53. Qe2 {[%clk 0:00:30.6]} 53... f5 {[%clk 0:01:09.9]} 54. Qa6
{[%clk 0:00:31.5]} 54... e4 {[%clk 0:01:05.9]} 55. Qc8 {[%clk 0:00:31.5]} 55...
Bc5 {[%clk 0:00:51.2]} 56. Qg8+ {[%clk 0:00:31.6]} 56... Kf6 {[%clk 0:00:51.9]}
57. Qh8+ {[%clk 0:00:30.6]} 57... Qg7 {[%clk 0:00:52.6]} 58. Qc8 {[%clk
0:00:31.1]} 58... Qe7 {[%clk 0:00:51.5]} 59. Qh8+ {[%clk 0:00:31.6]} 59... Qg7
{[%clk 0:00:51.8]} 60. Qc8 {[%clk 0:00:32.3]} 60... Qe7 {[%clk 0:00:52.5]} 61.
Qc6+ {[%clk 0:00:33.4]} 61... Bd6 {[%clk 0:00:51.8]} 62. Qc8 {[%clk 0:00:33.3]}
62... Qf8 {[%clk 0:00:49.9]} 63. Qe6+ {[%clk 0:00:32.2]} 63... Kg7 {[%clk
0:00:51]} 64. Bc4 {[%clk 0:00:29.9]} 64... Bc5 {[%clk 0:00:51.7]} 65. Qd5 {[%clk
0:00:30.2]} 65... Be7 {[%clk 0:00:49.8]} 66. Qe6 {[%clk 0:00:31.1]} 66... Bf6
{[%clk 0:00:50.4]} 67. Qd7+ {[%clk 0:00:31.5]} 67... Qe7 {[%clk 0:00:51.2]} 68.
Qd5 {[%clk 0:00:32.7]} 68... Qd8 {[%clk 0:00:50]} 69. Qf7+ {[%clk 0:00:32.8]}
69... Kh6 {[%clk 0:00:48.9]} 70. Bd5 {[%clk 0:00:29.9]} 70... Qe7 {[%clk
0:00:44.9]} 71. Qg8 {[%clk 0:00:31.2]} 71... Qg7 {[%clk 0:00:45.5]} 72. Qe8
{[%clk 0:00:31.5]} 72... Qe7 {[%clk 0:00:44]} 73. Qg8 {[%clk 0:00:32.2]} 73...
Qg7 {[%clk 0:00:44.4]} 74. Qe6 {[%clk 0:00:33.3]} 74... Qe7 {[%clk 0:00:44.4]}
75. Qc6 {[%clk 0:00:34.4]} 75... Kg7 {[%clk 0:00:43]} 76. Qa8 {[%clk 0:00:34.2]}
76... Qd8 {[%clk 0:00:42.7]} 77. Qb7+ {[%clk 0:00:35]} 77... Qe7 {[%clk
0:00:43.7]} 78. Qc8 {[%clk 0:00:36.3]} 78... Qd8 {[%clk 0:00:43.4]} 79. Qe6
{[%clk 0:00:37.3]} 79... Qf8 {[%clk 0:00:31.6]} 80. Kf1 {[%clk 0:00:35.9]} 80...
Bd8 {[%clk 0:00:27.4]} 81. Bc4 {[%clk 0:00:35]} 81... Bf6 {[%clk 0:00:28.3]} 82.
Ke2 {[%clk 0:00:34.6]} 82... Bd8 {[%clk 0:00:29.4]} 83. Qd7+ {[%clk 0:00:35.1]}
83... Qe7 {[%clk 0:00:29.7]} 84. Qd5 {[%clk 0:00:36.2]} 84... Qf8 {[%clk
0:00:30.6]} 85. Qe6 {[%clk 0:00:36.5]} 85... Bf6 {[%clk 0:00:29.9]} 86. Bb5
{[%clk 0:00:37.2]} 86... Qe7 {[%clk 0:00:28.8]} 87. Qd5 {[%clk 0:00:36.9]} 87...
Qb4 {[%clk 0:00:27.7]} 88. Bc4 {[%clk 0:00:37.1]} 88... Qf8 {[%clk 0:00:28.4]}
89. Qc6 {[%clk 0:00:36.2]} 89... Kh6 {[%clk 0:00:28.4]} 90. Qd5 {[%clk
0:00:33.7]} 90... Kg7 {[%clk 0:00:28.7]} 91. Qe6 {[%clk 0:00:34.9]} 91... Kh6
{[%clk 0:00:28]} 92. Bd5 {[%clk 0:00:35.2]} 92... Kg7 {[%clk 0:00:28.5]} 93. Kf1
{[%clk 0:00:36.6]} 93... Kh6 {[%clk 0:00:29.7]} 94. Bc6 {[%clk 0:00:38.1]} 94...
Kg7 {[%clk 0:00:30.4]} 95. Qd5 {[%clk 0:00:38.2]} 95... Qd8 {[%clk 0:00:30.4]}
96. Bd7 {[%clk 0:00:39.2]} 96... Qe7 {[%clk 0:00:30.8]} 97. Bb5 {[%clk
0:00:37.4]} 97... Qe5 {[%clk 0:00:31.2]} 98. Qd7+ {[%clk 0:00:37.9]} 98... Qe7
{[%clk 0:00:32]} 99. Qd5 {[%clk 0:00:39]} 99... Qe5 {[%clk 0:00:32.9]} 100. Qd7+
{[%clk 0:00:40.1]} 100... Qe7 {[%clk 0:00:33.8]} 101. Qd5 {[%clk 0:00:40.8]}
101... Qe5 {[%clk 0:00:34.9]} 102. Qb7+ {[%clk 0:00:41.9]} 102... Qe7 {[%clk
0:00:35.8]} 103. Qc6 {[%clk 0:00:43.4]} 103... e3 {[%clk 0:00:35.6]} 104. Qd5
{[%clk 0:00:39.8]} 104... exf2 {[%clk 0:00:36]} 105. Kxf2 {[%clk 0:00:39.9]}
105... Qa7+ {[%clk 0:00:36.4]} 106. Kg2 {[%clk 0:00:40.7]} 106... Qd4 {[%clk
0:00:32.3]} 107. Qxd4 {[%clk 0:00:35.3]} 107... Bxd4 {[%clk 0:00:34.2]} 108. Be8
{[%clk 0:00:36.3]} 108... Be5 {[%clk 0:00:35]} 109. Kh3 {[%clk 0:00:37.2]}
109... f4 {[%clk 0:00:33.4]} 1/2-1/2

[Event "*** MasterClass Titled Tuesday Blitz"]
[Site "Chess.com"]
[Date "2017.12.12"]
[Round "5"]
[White "Penguininja"]
[Black "Bryakin_Mikhail"]
[Result "1-0"]
[WhiteElo "2410"]
[BlackElo "2528"]
[TimeControl "180+2"]
[EndTime "14:00:15 PST"]
[Termination "Penguininja won by resignation"]

1. d4 {[%clk 0:03:01.3]} 1... d5 {[%clk 0:02:59.5]} 2. c4 {[%clk 0:03:02.5]}
2... c6 {[%clk 0:03:00.8]} 3. Nf3 {[%clk 0:03:03.4]} 3... Nf6 {[%clk 0:03:00.6]}
4. e3 {[%clk 0:03:05]} 4... a6 {[%clk 0:02:59.9]} 5. Nc3 {[%clk 0:03:02.9]} 5...
Bf5 {[%clk 0:03:00.2]} 6. Ne5 {[%clk 0:03:01.9]} 6... e6 {[%clk 0:02:59.2]} 7.
g4 {[%clk 0:02:50]} 7... Bg6 {[%clk 0:02:59]} 8. h4 {[%clk 0:02:51]} 8... h5
{[%clk 0:02:52.8]} 9. Nxg6 {[%clk 0:02:42.6]} 9... fxg6 {[%clk 0:02:54.7]} 10.
Bd3 {[%clk 0:02:42.4]} 10... Kf7 {[%clk 0:02:54.2]} 11. g5 {[%clk 0:02:35.7]}
11... Nfd7 {[%clk 0:02:47.5]} 12. Qf3+ {[%clk 0:02:31.3]} 12... Kg8 {[%clk
0:02:48.2]} 13. Bxg6 {[%clk 0:02:31.9]} 13... Qe7 {[%clk 0:02:49.7]} 14. cxd5
{[%clk 0:02:24.2]} 14... cxd5 {[%clk 0:02:49.6]} 15. Nxd5 {[%clk 0:02:19]} 1-0

[Event "*** MasterClass Titled Tuesday Blitz"]
[Site "Chess.com"]
[Date "2017.12.12"]
[Round "5"]
[White "calemcc"]
[Black "MaxLeto"]
[Result "1-0"]
[WhiteElo "2281"]
[BlackElo "2388"]
[TimeControl "180+2"]
[EndTime "14:00:57 PST"]
[Termination "calemcc won by checkmate"]

1. d4 {[%clk 0:03:01.9]} 1... d5 {[%clk 0:02:58.1]} 2. c4 {[%clk 0:02:59.5]}
2... e6 {[%clk 0:02:58.2]} 3. Nc3 {[%clk 0:03:00.8]} 3... Nf6 {[%clk 0:02:58.9]}
4. Nf3 {[%clk 0:03:01.4]} 4... Be7 {[%clk 0:03:00.5]} 5. Bg5 {[%clk 0:03:02.7]}
5... O-O {[%clk 0:03:01.6]} 6. e3 {[%clk 0:03:04.1]} 6... h6 {[%clk 0:03:02]} 7.
Bh4 {[%clk 0:03:04.9]} 7... b6 {[%clk 0:03:01.2]} 8. cxd5 {[%clk 0:03:05.4]}
8... Nxd5 {[%clk 0:03:01.2]} 9. Nxd5 {[%clk 0:03:06.2]} 9... exd5 {[%clk
0:03:00.8]} 10. Bxe7 {[%clk 0:03:06.8]} 10... Qxe7 {[%clk 0:03:02.7]} 11. Qc2
{[%clk 0:03:07.9]} 11... c6 {[%clk 0:02:47.6]} 12. Bd3 {[%clk 0:03:04.2]} 12...
Bb7 {[%clk 0:02:47.1]} 13. Ne5 {[%clk 0:02:54]} 13... c5 {[%clk 0:02:39.1]} 14.
O-O {[%clk 0:02:47.2]} 14... Rc8 {[%clk 0:02:35.4]} 15. Bh7+ {[%clk 0:02:45.8]}
15... Kh8 {[%clk 0:02:28.5]} 16. Bg6 {[%clk 0:02:28.1]} 16... cxd4 {[%clk
0:02:20.9]} 17. Nxf7+ {[%clk 0:02:24.9]} 17... Kg8 {[%clk 0:02:21.6]} 18. Qf5
{[%clk 0:02:21.3]} 18... Rf8 {[%clk 0:02:04.9]} 19. Bh7# {[%clk 0:02:21.6]} 1-0

[Event "*** MasterClass Titled Tuesday Blitz"]
[Site "Chess.com"]
[Date "2017.12.12"]
[Round "5"]
[White "Jbd735"]
[Black "ohusbands"]
[Result "1-0"]
[WhiteElo "2255"]
[BlackElo "2341"]
[TimeControl "180+2"]
[EndTime "14:02:34 PST"]
[Termination "Jbd735 won by resignation"]

1. d4 {[%clk 0:03:01.9]} 1... Nf6 {[%clk 0:03:00.6]} 2. Nf3 {[%clk 0:03:01.7]}
2... e6 {[%clk 0:03:01.9]} 3. c3 {[%clk 0:03:01.1]} 3... d5 {[%clk 0:03:03.8]}
4. e3 {[%clk 0:03:01.1]} 4... c5 {[%clk 0:03:05.6]} 5. Bd3 {[%clk 0:03:00.4]}
5... Bd6 {[%clk 0:03:06.1]} 6. Nbd2 {[%clk 0:03:00.7]} 6... O-O {[%clk
0:03:07.7]} 7. O-O {[%clk 0:03:00.9]} 7... b6 {[%clk 0:03:07.1]} 8. e4 {[%clk
0:02:56.4]} 8... dxe4 {[%clk 0:03:03]} 9. Nxe4 {[%clk 0:02:56.8]} 9... Bb7
{[%clk 0:02:55.3]} 10. Nxd6 {[%clk 0:02:29.3]} 10... Qxd6 {[%clk 0:02:57.2]} 11.
dxc5 {[%clk 0:02:17.2]} 11... Qxc5 {[%clk 0:02:55.5]} 12. Qe2 {[%clk 0:02:11.8]}
12... Nbd7 {[%clk 0:02:55.8]} 13. Be3 {[%clk 0:02:09.1]} 13... Qc7 {[%clk
0:02:56]} 14. Rad1 {[%clk 0:02:08.3]} 14... Bxf3 {[%clk 0:02:55.5]} 15. Qxf3
{[%clk 0:02:07.5]} 15... Ne5 {[%clk 0:02:53.4]} 16. Qg3 {[%clk 0:02:05.2]} 16...
Nh5 {[%clk 0:02:49.3]} 17. Qh4 {[%clk 0:01:59.3]} 17... Nxd3 {[%clk 0:02:47.4]}
18. Rxd3 {[%clk 0:02:00.1]} 18... Nf6 {[%clk 0:02:47]} 19. Bg5 {[%clk
0:01:54.1]} 19... Nd5 {[%clk 0:02:42.1]} 20. Rh3 {[%clk 0:01:52.9]} 20... f6
{[%clk 0:02:32.6]} 21. Qxh7+ {[%clk 0:01:43.6]} 21... Kf7 {[%clk 0:02:33.7]} 22.
Bh6 {[%clk 0:01:29.7]} 22... Ke8 {[%clk 0:02:33.8]} 23. Bxg7 {[%clk 0:01:23.1]}
23... Rf7 {[%clk 0:02:17]} 24. Qg8+ {[%clk 0:01:14.8]} 24... Ke7 {[%clk
0:02:18.1]} 25. Qxa8 {[%clk 0:01:15.4]} 25... Rxg7 {[%clk 0:02:19.5]} 26. Rh8
{[%clk 0:01:10.9]} 26... f5 {[%clk 0:02:19.1]} 27. Qf8+ {[%clk 0:01:08.9]} 1-0

[Event "*** MasterClass Titled Tuesday Blitz"]
[Site "Chess.com"]
[Date "2017.12.12"]
[Round "5"]
[White "Oleksandr_Bortnyk"]
[Black "robbykevlishvili"]
[Result "1-0"]
[WhiteElo "2813"]
[BlackElo "2463"]
[TimeControl "180+2"]
[EndTime "14:02:54 PST"]
[Termination "Oleksandr_Bortnyk won by checkmate"]

1. e4 {[%clk 0:02:53.1]} 1... e5 {[%clk 0:02:59.4]} 2. Nf3 {[%clk 0:02:53.7]}
2... Nc6 {[%clk 0:02:56.9]} 3. Bb5 {[%clk 0:02:54.5]} 3... a6 {[%clk 0:02:56.6]}
4. Ba4 {[%clk 0:02:55.5]} 4... Nf6 {[%clk 0:02:56.9]} 5. Qe2 {[%clk 0:02:57]}
5... b5 {[%clk 0:02:56]} 6. Bb3 {[%clk 0:02:58.3]} 6... Be7 {[%clk 0:02:57.6]}
7. O-O {[%clk 0:02:59.5]} 7... O-O {[%clk 0:02:58.3]} 8. c3 {[%clk 0:03:00.7]}
8... d6 {[%clk 0:02:59.6]} 9. h3 {[%clk 0:03:01.4]} 9... Na5 {[%clk 0:03:00.3]}
10. Bc2 {[%clk 0:03:02.1]} 10... c5 {[%clk 0:03:01.9]} 11. d3 {[%clk 0:03:03.9]}
11... h6 {[%clk 0:03:00.5]} 12. Rd1 {[%clk 0:03:05.8]} 12... Qc7 {[%clk
0:03:00.4]} 13. Nbd2 {[%clk 0:03:07.7]} 13... Re8 {[%clk 0:03:01.1]} 14. Nf1
{[%clk 0:03:09.6]} 14... Bf8 {[%clk 0:03:02.6]} 15. g4 {[%clk 0:03:10.8]} 15...
g6 {[%clk 0:03:03]} 16. Ng3 {[%clk 0:03:11.8]} 16... Bg7 {[%clk 0:03:02.2]} 17.
a3 {[%clk 0:03:05.4]} 17... Nc6 {[%clk 0:03:03]} 18. Be3 {[%clk 0:03:05.8]}
18... Nd8 {[%clk 0:03:03.9]} 19. Qd2 {[%clk 0:03:05.6]} 19... Kh7 {[%clk
0:03:02.9]} 20. Kh1 {[%clk 0:03:06]} 20... d5 {[%clk 0:03:00.7]} 21. g5 {[%clk
0:03:01.5]} 21... hxg5 {[%clk 0:03:00.3]} 22. Bxg5 {[%clk 0:03:02.8]} 22... d4
{[%clk 0:02:58.4]} 23. Kg2 {[%clk 0:02:59.1]} 23... Ne6 {[%clk 0:02:55.8]} 24.
Bb3 {[%clk 0:02:57.6]} 24... Kg8 {[%clk 0:02:56.3]} 25. h4 {[%clk 0:02:52.1]}
25... Nh7 {[%clk 0:02:55.7]} 26. Bxe6 {[%clk 0:02:50.4]} 26... Bxe6 {[%clk
0:02:55.7]} 27. h5 {[%clk 0:02:51.9]} 27... Bg4 {[%clk 0:02:52.4]} 28. Rh1
{[%clk 0:02:37.6]} 28... Nf8 {[%clk 0:01:57.8]} 29. h6 {[%clk 0:02:21.5]} 29...
Bh8 {[%clk 0:01:56.2]} 30. h7+ {[%clk 0:02:21.5]} 30... Nxh7 {[%clk 0:01:52.3]}
31. Rxh7 {[%clk 0:02:22.2]} 31... Bxf3+ {[%clk 0:01:50.6]} 32. Kxf3 {[%clk
0:02:20.8]} 32... Kxh7 {[%clk 0:01:52.5]} 33. Rh1+ {[%clk 0:02:21.6]} 33... Kg8
{[%clk 0:01:53.6]} 34. Rxh8+ {[%clk 0:02:21.9]} 34... Kxh8 {[%clk 0:01:52.9]}
35. Bf6+ {[%clk 0:02:23.1]} 35... Kh7 {[%clk 0:01:54.1]} 36. Nf5 {[%clk
0:02:16]} 36... gxf5 {[%clk 0:01:51.6]} 37. Qg5 {[%clk 0:02:16.9]} 37... fxe4+
{[%clk 0:01:43.2]} 38. dxe4 {[%clk 0:02:18.8]} 38... Rg8 {[%clk 0:01:43.9]} 39.
Qh5# {[%clk 0:02:19.8]} 1-0